[Event "Early-Titled-Tuesday-Blitz-June-18-2024"]
[Site "Chess.com"]
[Date "2024.06.18"]
[Round "1"]
[White "SchmakAttack"]
[Black "MaxLeto"]
[Result "1-0"]
[WhiteElo "2813"]
[BlackElo "2463"]
[TimeControl "180+1"]
[EndTime "8:07:21 PDT"]
[Termination "SchmakAttack won by checkmate"]

1. Nf3 {[%clk 0:02:59.3]} 1... d5 {[%clk 0:02:59.2]} 2. b3 {[%clk 0:02:59.2]}
2... c6 {[%clk 0:03:00.1]} 3. Bb2 {[%clk 0:02:59.3]} 3... Nf6 {[%clk 0:02:59.8]}
4. g3 {[%clk 0:02:58.2]} 4... Bf5 {[%clk 0:02:57.2]} 5. Bg2 {[%clk 0:02:58.4]}
5... e6 {[%clk 0:02:57.6]} 6. O-O {[%clk 0:02:58.6]} 6... h6 {[%clk 0:02:58.1]}
7. d3 {[%clk 0:02:59.1]} 7... Be7 {[%clk 0:02:58]} 8. Nbd2 {[%clk 0:02:59.6]}
8... Bh7 {[%clk 0:02:58.2]} 9. Re1 {[%clk 0:02:43.1]} 9... O-O {[%clk
0:02:58.4]} 10. e4 {[%clk 0:02:43.4]} 10... Nbd7 {[%clk 0:02:57.9]} 11. h3
{[%clk 0:02:35.1]} 11... a5 {[%clk 0:02:56.7]} 12. a3 {[%clk 0:02:35.6]} 12...
b5 {[%clk 0:02:55.9]} 13. Kh2 {[%clk 0:02:22.5]} 13... Qb6 {[%clk 0:02:54.6]}
14. Qe2 {[%clk 0:02:21.1]} 14... Rfd8 {[%clk 0:02:47.8]} 15. e5 {[%clk
0:02:09.4]} 15... Ne8 {[%clk 0:02:47.3]} 16. Ng1 {[%clk 0:02:10]} 16... Rac8
{[%clk 0:02:08.4]} 17. f4 {[%clk 0:02:05.4]} 17... c5 {[%clk 0:02:08.8]} 18.
Rab1 {[%clk 0:02:00.1]} 18... Qa6 {[%clk 0:02:05.4]} 19. Ngf3 {[%clk 0:01:46.9]}
19... c4 {[%clk 0:01:58.9]} 20. bxc4 {[%clk 0:01:44.8]} 20... bxc4 {[%clk
0:01:55]} 21. dxc4 {[%clk 0:01:41.2]} 21... dxc4 {[%clk 0:00:41.2]} 22. Nd4
{[%clk 0:01:32.6]} 22... Nb6 {[%clk 0:00:25.5]} 23. f5 {[%clk 0:01:02.2]} 23...
Nd5 {[%clk 0:00:19.8]} 24. h4 {[%clk 0:00:47]} 24... exf5 {[%clk 0:00:09.6]} 25.
e6 {[%clk 0:00:45.2]} 25... Bf6 {[%clk 0:00:05.3]} 26. exf7+ {[%clk 0:00:30.4]}
26... Kxf7 {[%clk 0:00:06.2]} 27. Ba1 {[%clk 0:00:26.3]} 27... Rd6 {[%clk
0:00:05.5]} 28. Qh5+ {[%clk 0:00:22.7]} 28... Bg6 {[%clk 0:00:05.1]} 29. Qf3
{[%clk 0:00:22.3]} 29... c3 {[%clk 0:00:04.4]} 30. N2b3 {[%clk 0:00:20.8]} 30...
Nec7 {[%clk 0:00:02.7]} 31. Nxf5 {[%clk 0:00:15.6]} 31... Bxf5 {[%clk
0:00:02.9]} 32. Qxf5 {[%clk 0:00:16.5]} 32... Re8 {[%clk 0:00:02.8]} 33. Qh5+
{[%clk 0:00:12]} 33... Kf8 {[%clk 0:00:02.9]} 34. Rxe8+ {[%clk 0:00:10.6]} 34...
Nxe8 {[%clk 0:00:02.7]} 35. Bxd5 {[%clk 0:00:11.3]} 35... Qb5 {[%clk 0:00:02.3]}
36. Qf7# {[%clk 0:00:10.7]} 1-0

[Event "Early-Titled-Tuesday-Blitz-June-18-2024"]
[Site "Chess.com"]
[Date "2024.06.18"]
[Round "1"]
[White "drdaro"]
[Black "DontMessWithTheFish"]
[Result "0-1"]
[WhiteElo "2318"]
[BlackElo "2647"]
[TimeControl "180+1"]
[EndTime "8:07:21 PDT"]
[Termination "DontMessWithTheFish won on time"]

1. Nf3 {[%clk 0:02:56.8]} 1... b6 {[%clk 0:02:58.6]} 2. g3 {[%clk 0:02:57.7]}
2... Bb7 {[%clk 0:02:59.2]} 3. Bg2 {[%clk 0:02:58.3]} 3... g6 {[%clk 0:02:59.1]}
4. O-O {[%clk 0:02:59]} 4... Bg7 {[%clk 0:02:59.8]} 5. Re1 {[%clk 0:02:59.2]}
5... c5 {[%clk 0:03:00]} 6. e4 {[%clk 0:02:58.2]} 6... d6 {[%clk 0:03:00.6]} 7.
c3 {[%clk 0:02:55.3]} 7... Nd7 {[%clk 0:02:56.9]} 8. d4 {[%clk 0:02:55.1]} 8...
Rc8 {[%clk 0:02:50.9]} 9. Na3 {[%clk 0:02:50.6]} 9... e6 {[%clk 0:02:44.6]} 10.
d5 {[%clk 0:02:43.5]} 10... e5 {[%clk 0:02:23.4]} 11. Nc4 {[%clk 0:02:23.9]}
11... Ndf6 {[%clk 0:02:20.2]} 12. a4 {[%clk 0:02:23.1]} 12... Ne7 {[%clk
0:02:13.2]} 13. Bg5 {[%clk 0:01:30.1]} 13... h6 {[%clk 0:01:55]} 14. Be3 {[%clk
0:01:21.6]} 14... O-O {[%clk 0:01:41.7]} 15. Nfd2 {[%clk 0:00:53.7]} 15... Qd7
{[%clk 0:01:34]} 16. h3 {[%clk 0:00:33.1]} 16... g5 {[%clk 0:01:33.6]} 17. Kh2
{[%clk 0:00:13.3]} 17... Ng6 {[%clk 0:01:27.8]} 18. Rg1 {[%clk 0:00:13.1]} 18...
Nh7 {[%clk 0:01:20.7]} 19. Qe2 {[%clk 0:00:08.4]} 19... Ba6 {[%clk 0:01:19]} 20.
b3 {[%clk 0:00:08.1]} 20... Qe7 {[%clk 0:01:14]} 21. Bf3 {[%clk 0:00:08.2]}
21... Kh8 {[%clk 0:01:10.3]} 22. Bg4 {[%clk 0:00:08.4]} 22... Rce8 {[%clk
0:01:09.9]} 23. Bf5 {[%clk 0:00:09]} 23... Bc8 {[%clk 0:01:09.5]} 24. Qh5 {[%clk
0:00:06.5]} 24... Nf6 {[%clk 0:01:07.4]} 25. Qf3 {[%clk 0:00:05.6]} 25... Rg8
{[%clk 0:01:04.9]} 26. Qe2 {[%clk 0:00:03.9]} 26... Nf8 {[%clk 0:00:59.4]} 27.
Raf1 {[%clk 0:00:04.4]} 27... Bxf5 {[%clk 0:00:58.6]} 28. exf5 {[%clk
0:00:05.3]} 28... Nxd5 {[%clk 0:00:59]} 29. Ne4 {[%clk 0:00:05.1]} 29... Rd8
{[%clk 0:00:59.2]} 30. Qf3 {[%clk 0:00:05.3]} 30... Nf6 {[%clk 0:00:55.9]} 31.
Nxf6 {[%clk 0:00:04]} 31... Qxf6 {[%clk 0:00:56.5]} 32. Qd5 {[%clk 0:00:02.5]}
32... Qxf5 {[%clk 0:00:56.4]} 33. f4 {[%clk 0:00:02.8]} 33... Qe6 {[%clk
0:00:50.7]} 34. Qd2 {[%clk 0:00:01.6]} 34... exf4 {[%clk 0:00:28.6]} 35. gxf4
{[%clk 0:00:02.5]} 35... d5 {[%clk 0:00:29.5]} 36. Ne5 {[%clk 0:00:02]} 36...
Bxe5 {[%clk 0:00:28.3]} 37. fxe5 {[%clk 0:00:02.9]} 37... Qxe5+ {[%clk 0:00:29]}
38. Kh1 {[%clk 0:00:02.8]} 38... Ng6 {[%clk 0:00:26.6]} 39. b4 {[%clk
0:00:02.7]} 39... d4 {[%clk 0:00:26.5]} 40. cxd4 {[%clk 0:00:02.5]} 40... cxd4
{[%clk 0:00:27.4]} 0-1

[Event "Early-Titled-Tuesday-Blitz-June-18-2024"]
[Site "Chess.com"]
[Date "2024.06.18"]
[Round "1"]
[White "Chernov_Alexander_A"]
[Black "profedechess93"]
[Result "1/2-1/2"]
[WhiteElo "2281"]
[BlackElo "2614"]
[TimeControl "180+1"]
[EndTime "8:07:23 PDT"]
[Termination "Game drawn by repetition"]

1. d4 {[%clk 0:02:29.1]} 1... d5 {[%clk 0:03:00]} 2. Nc3 {[%clk 0:02:29.1]} 2...
Nf6 {[%clk 0:03:00.5]} 3. Bg5 {[%clk 0:02:28.9]} 3... Ne4 {[%clk 0:03:00.5]} 4.
Nxe4 {[%clk 0:02:28.2]} 4... dxe4 {[%clk 0:03:01.2]} 5. c3 {[%clk 0:02:27.3]}
5... Qd5 {[%clk 0:03:00.5]} 6. Bh4 {[%clk 0:02:25.6]} 6... c5 {[%clk 0:03:00.3]}
7. e3 {[%clk 0:02:25.2]} 7... cxd4 {[%clk 0:02:58.3]} 8. exd4 {[%clk 0:02:24.2]}
8... Nc6 {[%clk 0:02:58.4]} 9. Qb3 {[%clk 0:02:23]} 9... Qxb3 {[%clk 0:02:22.9]}
10. axb3 {[%clk 0:02:22.2]} 10... Bf5 {[%clk 0:02:23.8]} 11. Bb5 {[%clk
0:02:13.8]} 11... e6 {[%clk 0:02:23.7]} 12. Ne2 {[%clk 0:02:10.7]} 12... Bd6
{[%clk 0:02:23]} 13. Bg3 {[%clk 0:02:07.9]} 13... Be7 {[%clk 0:02:20.9]} 14. O-O
{[%clk 0:01:56.6]} 14... h5 {[%clk 0:02:21]} 15. h3 {[%clk 0:01:53.3]} 15... h4
{[%clk 0:02:20.3]} 16. Bh2 {[%clk 0:01:52.9]} 16... O-O {[%clk 0:02:20.7]} 17.
b4 {[%clk 0:01:46.3]} 17... Rfc8 {[%clk 0:02:19.8]} 18. Ra2 {[%clk 0:01:33.8]}
18... a6 {[%clk 0:02:04.5]} 19. Rfa1 {[%clk 0:01:31.1]} 19... Na7 {[%clk
0:01:38.3]} 20. Ba4 {[%clk 0:01:28.8]} 20... Kh7 {[%clk 0:01:08.5]} 21. b5
{[%clk 0:01:27.5]} 21... a5 {[%clk 0:00:57.3]} 22. b6 {[%clk 0:01:20.3]} 22...
Nc6 {[%clk 0:00:56.8]} 23. Bc7 {[%clk 0:01:12.3]} 23... Nb8 {[%clk 0:00:21.9]}
24. Bb5 {[%clk 0:01:07.5]} 24... Bd8 {[%clk 0:00:21.1]} 25. Bxd8 {[%clk
0:00:48.9]} 25... Rxd8 {[%clk 0:00:22]} 26. c4 {[%clk 0:00:46.8]} 26... Nd7
{[%clk 0:00:16.5]} 27. c5 {[%clk 0:00:40.3]} 27... e5 {[%clk 0:00:15.4]} 28.
Bxd7 {[%clk 0:00:30]} 28... Rxd7 {[%clk 0:00:14]} 29. dxe5 {[%clk 0:00:29.8]}
29... Rd2 {[%clk 0:00:12.5]} 30. Nc3 {[%clk 0:00:26]} 30... e3 {[%clk
0:00:12.5]} 31. fxe3 {[%clk 0:00:24.6]} 31... Rad8 {[%clk 0:00:12.3]} 32. Rxa5
{[%clk 0:00:20.5]} 32... Rxb2 {[%clk 0:00:12.4]} 33. R5a2 {[%clk 0:00:19.6]}
33... Rb3 {[%clk 0:00:12.3]} 34. Ra3 {[%clk 0:00:16.3]} 34... Rb2 {[%clk
0:00:12.2]} 35. R1a2 {[%clk 0:00:14.9]} 35... Rb4 {[%clk 0:00:12.4]} 36. Ra4
{[%clk 0:00:12.9]} 36... Rb3 {[%clk 0:00:12.6]} 37. R4a3 {[%clk 0:00:12.2]}
37... Rb4 {[%clk 0:00:12.1]} 38. Ra4 {[%clk 0:00:12.4]} 38... Rb3 {[%clk
0:00:12.1]} 39. R4a3 {[%clk 0:00:12.5]} 39... Rb4 {[%clk 0:00:11.7]} 1/2-1/2

[Event "Early-Titled-Tuesday-Blitz-June-18-2024"]
[Site "Chess.com"]
[Date "2024.06.18"]
[Round "1"]
[White "SuperPower2011"]
[Black "Weifd"]
[Result "1-0"]
[WhiteElo "2714"]
[BlackElo "2396"]
[TimeControl "180+1"]
[EndTime "8:07:25 PDT"]
[Termination "SuperPower2011 won on time"]

1. e4 {[%clk 0:02:59.8]} 1... c5 {[%clk 0:02:58.6]} 2. Nf3 {[%clk 0:02:58]} 2...
e6 {[%clk 0:02:59.2]} 3. d4 {[%clk 0:02:56.9]} 3... cxd4 {[%clk 0:02:48.1]} 4.
Qxd4 {[%clk 0:02:57.8]} 4... Nc6 {[%clk 0:02:47.4]} 5. Qd3 {[%clk 0:02:58.5]}
5... Nf6 {[%clk 0:02:45.2]} 6. Bg5 {[%clk 0:02:50.7]} 6... Be7 {[%clk
0:02:35.8]} 7. c3 {[%clk 0:02:37.4]} 7... O-O {[%clk 0:02:33.6]} 8. Nbd2 {[%clk
0:02:37.3]} 8... d5 {[%clk 0:02:31.6]} 9. e5 {[%clk 0:02:34.4]} 9... Nd7 {[%clk
0:02:28.9]} 10. Bf4 {[%clk 0:02:28.5]} 10... g5 {[%clk 0:02:24.9]} 11. Nxg5
{[%clk 0:02:21.1]} 11... Bxg5 {[%clk 0:02:24.4]} 12. Qg3 {[%clk 0:02:21.8]}
12... Kh8 {[%clk 0:02:05]} 13. Bxg5 {[%clk 0:02:21.8]} 13... Qb6 {[%clk
0:02:03.7]} 14. Bd3 {[%clk 0:01:50]} 14... Qxb2 {[%clk 0:01:18.7]} 15. Qh4
{[%clk 0:00:39.4]} 15... f5 {[%clk 0:01:10.9]} 16. exf6 {[%clk 0:00:39.5]} 16...
Rf7 {[%clk 0:01:11.5]} 17. O-O {[%clk 0:00:39.3]} 17... Qxc3 {[%clk 0:01:09.8]}
18. Bg6 {[%clk 0:00:39.3]} 18... Nde5 {[%clk 0:01:00.7]} 19. Bxf7 {[%clk
0:00:34.2]} 19... Nxf7 {[%clk 0:01:01.6]} 20. Nf3 {[%clk 0:00:32.6]} 20... Bd7
{[%clk 0:00:57.5]} 21. Rac1 {[%clk 0:00:32.2]} 21... Qd3 {[%clk 0:00:57.4]} 22.
Bf4 {[%clk 0:00:28.2]} 22... Rg8 {[%clk 0:00:57.3]} 23. Bg3 {[%clk 0:00:28.3]}
23... Qf5 {[%clk 0:00:37.9]} 24. Nd4 {[%clk 0:00:21.7]} 24... Qg6 {[%clk
0:00:24.9]} 25. Rfe1 {[%clk 0:00:17.5]} 25... e5 {[%clk 0:00:23.9]} 26. Nxc6
{[%clk 0:00:17.4]} 26... Bxc6 {[%clk 0:00:24.3]} 27. f3 {[%clk 0:00:09.1]} 27...
d4 {[%clk 0:00:20.2]} 28. Rcd1 {[%clk 0:00:06.7]} 28... Re8 {[%clk 0:00:16.7]}
29. Rd2 {[%clk 0:00:06.9]} 29... Qf5 {[%clk 0:00:11.7]} 30. h3 {[%clk
0:00:04.6]} 30... Ng5 {[%clk 0:00:11.7]} 31. Qg4 {[%clk 0:00:03.2]} 31... Qxg4
{[%clk 0:00:10]} 32. fxg4 {[%clk 0:00:04.1]} 32... Ne4 {[%clk 0:00:08.6]} 33. f7
{[%clk 0:00:04.5]} 33... Nxd2 {[%clk 0:00:01.4]} 34. Bxe5+ {[%clk 0:00:04.7]}
1-0

[Event "Early-Titled-Tuesday-Blitz-June-18-2024"]
[Site "Chess.com"]
[Date "2024.06.18"]
[Round "1"]
[White "jk13"]
[Black "Defenstrator"]
[Result "0-1"]
[WhiteElo "2684"]
[BlackElo "2401"]
[TimeControl "180+1"]
[EndTime "8:07:25 PDT"]
[Termination "Defenstrator won on time"]

1. e4 {[%clk 0:02:57.1]} 1... e6 {[%clk 0:02:54.7]} 2. d3 {[%clk 0:02:56.7]}
2... d6 {[%clk 0:02:52.8]} 3. d4 {[%clk 0:02:54.1]} 3... d5 {[%clk 0:02:43]} 4.
e5 {[%clk 0:02:53.8]} 4... Bd7 {[%clk 0:02:39.6]} 5. Nf3 {[%clk 0:02:54.7]} 5...
c5 {[%clk 0:02:39.5]} 6. Bd3 {[%clk 0:02:53]} 6... cxd4 {[%clk 0:02:35.6]} 7.
O-O {[%clk 0:02:53.6]} 7... Nc6 {[%clk 0:02:34.2]} 8. Re1 {[%clk 0:02:54]} 8...
Nge7 {[%clk 0:02:33.7]} 9. Bf4 {[%clk 0:02:54.2]} 9... Ng6 {[%clk 0:02:19.6]}
10. Bg3 {[%clk 0:02:54.5]} 10... f5 {[%clk 0:02:08.9]} 11. h4 {[%clk 0:02:51.7]}
11... Bb4 {[%clk 0:01:44.7]} 12. Nbd2 {[%clk 0:02:50.8]} 12... O-O {[%clk
0:01:33]} 13. h5 {[%clk 0:02:50.6]} 13... Nh8 {[%clk 0:01:28.7]} 14. a3 {[%clk
0:02:37.8]} 14... Ba5 {[%clk 0:01:25.4]} 15. b4 {[%clk 0:02:35.7]} 15... Bc7
{[%clk 0:01:25]} 16. Nb3 {[%clk 0:02:35]} 16... Nf7 {[%clk 0:01:17.4]} 17. Bxf5
{[%clk 0:02:25.4]} 17... exf5 {[%clk 0:01:08.2]} 18. e6 {[%clk 0:02:26.3]} 18...
Bxg3 {[%clk 0:01:03.9]} 19. exf7+ {[%clk 0:02:24.2]} 19... Rxf7 {[%clk
0:01:02.2]} 20. fxg3 {[%clk 0:02:25.1]} 20... f4 {[%clk 0:00:56]} 21. gxf4
{[%clk 0:02:13.6]} 21... Rxf4 {[%clk 0:00:56.1]} 22. Nfxd4 {[%clk 0:01:57.3]}
22... Qg5 {[%clk 0:00:32]} 23. Ne6 {[%clk 0:00:59.7]} 23... Bxe6 {[%clk
0:00:30.1]} 24. Rxe6 {[%clk 0:01:00.6]} 24... Raf8 {[%clk 0:00:26.5]} 25. Re2
{[%clk 0:00:43.7]} 25... Qxh5 {[%clk 0:00:21.2]} 26. Rd2 {[%clk 0:00:36.7]}
26... Qh4 {[%clk 0:00:15.4]} 27. Qe1 {[%clk 0:00:28.5]} 27... Qg5 {[%clk
0:00:13.3]} 28. Qe6+ {[%clk 0:00:21.8]} 28... Kh8 {[%clk 0:00:13.4]} 29. Qxd5
{[%clk 0:00:22.5]} 29... Qg3 {[%clk 0:00:10.8]} 30. Qd3 {[%clk 0:00:17.4]} 30...
Rf3 {[%clk 0:00:09.9]} 31. Qe4 {[%clk 0:00:11.3]} 31... Ne5 {[%clk 0:00:08]} 32.
Re1 {[%clk 0:00:08.3]} 32... R3f5 {[%clk 0:00:05.7]} 33. Qe3 {[%clk 0:00:02.7]}
33... Nf3+ {[%clk 0:00:05.8]} 34. Kf1 {[%clk 0:00:01]} 34... Nh2+ {[%clk
0:00:04.7]} 35. Ke2 {[%clk 0:00:01.2]} 35... Re5 {[%clk 0:00:03.4]} 0-1

[Event "Early-Titled-Tuesday-Blitz-June-18-2024"]
[Site "Chess.com"]
[Date "2024.06.18"]
[Round "1"]
[White "pinelone"]
[Black "BardArtem"]
[Result "0-1"]
[WhiteElo "2481"]
[BlackElo "2840"]
[TimeControl "180+1"]
[EndTime "8:07:28 PDT"]
[Termination "BardArtem won on time"]

1. Nf3 {[%clk 0:03:00.9]} 1... d5 {[%clk 0:02:59.2]} 2. d4 {[%clk 0:03:00.4]}
2... Nf6 {[%clk 0:02:58.5]} 3. c4 {[%clk 0:03:00.5]} 3... e6 {[%clk 0:02:55.8]}
4. g3 {[%clk 0:03:00.2]} 4... Bd6 {[%clk 0:02:54.5]} 5. Bg2 {[%clk 0:03:00]}
5... O-O {[%clk 0:02:55.1]} 6. O-O {[%clk 0:03:00]} 6... h6 {[%clk 0:02:55.8]}
7. Nbd2 {[%clk 0:02:58.6]} 7... b6 {[%clk 0:02:53.8]} 8. b3 {[%clk 0:02:43.9]}
8... Bb7 {[%clk 0:02:50.9]} 9. Bb2 {[%clk 0:02:43.9]} 9... Nbd7 {[%clk
0:02:50.9]} 10. Rc1 {[%clk 0:02:42.4]} 10... Re8 {[%clk 0:02:49]} 11. Ne5 {[%clk
0:02:38.7]} 11... Qc8 {[%clk 0:02:35.1]} 12. cxd5 {[%clk 0:02:07.8]} 12... exd5
{[%clk 0:02:33.7]} 13. Bh3 {[%clk 0:02:04.4]} 13... Qd8 {[%clk 0:02:27.4]} 14.
Nc6 {[%clk 0:01:53.7]} 14... Bxc6 {[%clk 0:02:25.2]} 15. Rxc6 {[%clk 0:01:53.7]}
15... Nf8 {[%clk 0:02:23.3]} 16. Nf3 {[%clk 0:01:47.9]} 16... Ne6 {[%clk
0:02:15.7]} 17. Rc2 {[%clk 0:01:19.9]} 17... Ng5 {[%clk 0:02:10.3]} 18. Bg2
{[%clk 0:01:15.7]} 18... Nxf3+ {[%clk 0:02:09.1]} 19. exf3 {[%clk 0:01:10.8]}
19... Qd7 {[%clk 0:02:08.6]} 20. Re1 {[%clk 0:01:10.1]} 20... Rxe1+ {[%clk
0:02:06.8]} 21. Qxe1 {[%clk 0:01:09.3]} 21... a5 {[%clk 0:02:07.5]} 22. a4
{[%clk 0:01:08.6]} 22... Bb4 {[%clk 0:02:04.4]} 23. Qd1 {[%clk 0:01:06.8]} 23...
Re8 {[%clk 0:02:03.5]} 24. Re2 {[%clk 0:01:03.4]} 24... Nh7 {[%clk 0:01:43.8]}
25. Bf1 {[%clk 0:00:40.9]} 25... Nf8 {[%clk 0:01:40.5]} 26. Re3 {[%clk
0:00:38.5]} 26... c6 {[%clk 0:01:39.4]} 27. Bd3 {[%clk 0:00:37.6]} 27... Ne6
{[%clk 0:01:38.9]} 28. Bf5 {[%clk 0:00:36.3]} 28... Qd8 {[%clk 0:01:30.9]} 29.
Qe2 {[%clk 0:00:33.1]} 29... Nc7 {[%clk 0:01:31.1]} 30. Rxe8+ {[%clk 0:00:31.7]}
30... Nxe8 {[%clk 0:01:32]} 31. Qe5 {[%clk 0:00:28.9]} 31... Nd6 {[%clk
0:01:29.6]} 32. Bd3 {[%clk 0:00:27.5]} 32... Kf8 {[%clk 0:01:16.5]} 33. Kg2
{[%clk 0:00:27.3]} 33... Qe7 {[%clk 0:01:15.9]} 34. f4 {[%clk 0:00:24.2]} 34...
f6 {[%clk 0:01:12.3]} 35. Qxe7+ {[%clk 0:00:23.8]} 35... Kxe7 {[%clk 0:01:13.2]}
36. Kf3 {[%clk 0:00:23.2]} 36... Ne8 {[%clk 0:01:05.5]} 37. g4 {[%clk
0:00:23.3]} 37... Nc7 {[%clk 0:01:06]} 38. f5 {[%clk 0:00:21.4]} 38... Bd6
{[%clk 0:01:05.9]} 39. h3 {[%clk 0:00:21]} 39... Kd7 {[%clk 0:01:02.9]} 40. Ke2
{[%clk 0:00:20.5]} 40... Bf4 {[%clk 0:01:02.2]} 41. Bc3 {[%clk 0:00:20.2]} 41...
Bd6 {[%clk 0:01:00.6]} 42. Bd2 {[%clk 0:00:20.3]} 42... Bb4 {[%clk 0:00:55.9]}
43. Bf4 {[%clk 0:00:19.6]} 43... Ne8 {[%clk 0:00:55.1]} 44. Kf3 {[%clk
0:00:19.2]} 44... Bc3 {[%clk 0:00:52]} 45. Ke3 {[%clk 0:00:17.3]} 45... Bb2
{[%clk 0:00:50.2]} 46. Bc2 {[%clk 0:00:15.4]} 46... Bc1+ {[%clk 0:00:50.4]} 47.
Kf3 {[%clk 0:00:15.2]} 47... Bxf4 {[%clk 0:00:51.1]} 48. Kxf4 {[%clk 0:00:15.8]}
48... Kd6 {[%clk 0:00:50.8]} 49. h4 {[%clk 0:00:14.2]} 49... c5 {[%clk 0:00:51]}
50. g5 {[%clk 0:00:10.1]} 50... hxg5+ {[%clk 0:00:49.2]} 51. hxg5 {[%clk
0:00:10]} 51... cxd4 {[%clk 0:00:50.1]} 52. Bd3 {[%clk 0:00:07.6]} 52... Kc5
{[%clk 0:00:49.1]} 53. g6 {[%clk 0:00:03.7]} 53... Kb4 {[%clk 0:00:45.5]} 54.
Bb5 {[%clk 0:00:01.3]} 54... Nd6 {[%clk 0:00:45.6]} 0-1

[Event "Early-Titled-Tuesday-Blitz-June-18-2024"]
[Site "Chess.com"]
[Date "2024.06.18"]
[Round "1"]
[White "rubicapa"]
[Black "GothamChess"]
[Result "0-1"]
[WhiteElo "2450"]
[BlackElo "2787"]
[TimeControl "180+1"]
[EndTime "8:07:28 PDT"]
[Termination "GothamChess won on time"]

1. c4 {[%clk 0:03:00.9]} 1... g6 {[%clk 0:02:59]} 2. Nc3 {[%clk 0:03:00.2]} 2...
Bg7 {[%clk 0:02:59.6]} 3. e4 {[%clk 0:02:58]} 3... d6 {[%clk 0:02:57]} 4. d4
{[%clk 0:02:57.9]} 4... Nc6 {[%clk 0:02:57.1]} 5. Nf3 {[%clk 0:02:56.4]} 5...
Bg4 {[%clk 0:02:56.3]} 6. Be3 {[%clk 0:02:53.6]} 6... Bxf3 {[%clk 0:02:56.2]} 7.
gxf3 {[%clk 0:02:53.6]} 7... e5 {[%clk 0:02:56.9]} 8. d5 {[%clk 0:02:53.4]} 8...
Nd4 {[%clk 0:02:57.6]} 9. f4 {[%clk 0:02:48.9]} 9... c5 {[%clk 0:02:51.2]} 10.
dxc6 {[%clk 0:02:46]} 10... bxc6 {[%clk 0:02:50]} 11. Bg2 {[%clk 0:02:40.5]}
11... Ne7 {[%clk 0:02:44.1]} 12. h4 {[%clk 0:02:38.2]} 12... h5 {[%clk 0:02:41]}
13. Bxd4 {[%clk 0:02:32.7]} 13... exd4 {[%clk 0:02:40.9]} 14. Ne2 {[%clk
0:02:31.1]} 14... Qb6 {[%clk 0:02:29]} 15. Qd2 {[%clk 0:02:25.7]} 15... Rb8
{[%clk 0:02:26]} 16. Rb1 {[%clk 0:02:15.8]} 16... O-O {[%clk 0:02:21]} 17. f5
{[%clk 0:02:14.5]} 17... Qc5 {[%clk 0:02:15.9]} 18. b3 {[%clk 0:02:12.7]} 18...
gxf5 {[%clk 0:02:14.1]} 19. Ng3 {[%clk 0:02:08.7]} 19... fxe4 {[%clk 0:02:08.2]}
20. Nxe4 {[%clk 0:02:06.6]} 20... Qe5 {[%clk 0:02:03.8]} 21. Kf1 {[%clk
0:02:05.8]} 21... Ng6 {[%clk 0:01:59.4]} 22. Ng5 {[%clk 0:01:31.4]} 22... Rbc8
{[%clk 0:01:55.2]} 23. Re1 {[%clk 0:01:29.6]} 23... Qf4 {[%clk 0:01:51.9]} 24.
Qe2 {[%clk 0:01:20]} 24... Rce8 {[%clk 0:01:40]} 25. Qxe8 {[%clk 0:01:09.6]}
25... Rxe8 {[%clk 0:01:40.3]} 26. Rxe8+ {[%clk 0:01:09.8]} 26... Bf8 {[%clk
0:01:40.8]} 27. Bxc6 {[%clk 0:00:54.1]} 27... d3 {[%clk 0:01:23.3]} 28. Re3
{[%clk 0:00:10.3]} 28... Bg7 {[%clk 0:00:40.6]} 29. Bd5 {[%clk 0:00:04.8]} 29...
Ne5 {[%clk 0:00:35.2]} 30. Rg1 {[%clk 0:00:03.2]} 30... d2 {[%clk 0:00:32.7]}
31. Ke2 {[%clk 0:00:03]} 31... Ng4 {[%clk 0:00:18]} 32. Nf3 {[%clk 0:00:03.3]}
32... Nxe3 {[%clk 0:00:16.1]} 33. fxe3 {[%clk 0:00:03]} 33... d1=Q+ {[%clk
0:00:12.6]} 34. Kxd1 {[%clk 0:00:02.5]} 34... Qxe3 {[%clk 0:00:12.4]} 35. Rg2
{[%clk 0:00:01.8]} 35... Kf8 {[%clk 0:00:12.2]} 36. Re2 {[%clk 0:00:01.1]} 36...
Qd3+ {[%clk 0:00:11.3]} 37. Ke1 {[%clk 0:00:01]} 37... Bc3+ {[%clk 0:00:11.5]}
38. Kf2 {[%clk 0:00:01.6]} 38... Bd4+ {[%clk 0:00:12.1]} 39. Kf1 {[%clk
0:00:01.4]} 39... Qd1+ {[%clk 0:00:11.7]} 40. Re1 {[%clk 0:00:01]} 40... Qd3+
{[%clk 0:00:11]} 41. Re2 {[%clk 0:00:01.2]} 41... Be5 {[%clk 0:00:10.7]} 0-1